Cogmind - Beta 9.6 @@@ ROGUE MODE // 2020.08.31 @ 19:26:50 Player: Finestep Result: Destroyed by G-47 Trooper with Particle Gun Performance ------------- Evolutions (3) 1500 Regions Visited (6) 1200 Robots Destroyed (322) 1610 Value Destroyed (10171) 10171 Prototype IDs (15) 300 Alien Tech Used (0) 0 Bonus (5365) 5365 TOTAL SCORE: 20146 Bonus ------- Triggered High Security 500 High Alert Combat Kills 4716 Follower Combat Kills 149 Cogmind --------- Core Integrity 0/700 Matter 203/300 Energy 100/100 System Corruption 18% Temperature Cool (9) Movement Core (50) Location -7/Lower Caves Parts ------- > --- POWER (1) -------- (None) > --- PROPULSION (3) --- (None) > --- UTILITY (7) ------ Advanced Terrain Scan Processor Core Analyzer > --- WEAPON (2) ------- (None) > --- INVENTORY (4) ---- Layered Light Armor Plating Hacking Suite Hacking Suite Great Axe Peak State ------------ > --- POWER ------------ Light Angular Momentum Engine > --- PROPULSION ------- Aluminum Leg Carbon-fiber Leg Titanium Leg > --- UTILITY ---------- Advanced Heat Sink Advanced Heat Sink Large Storage Unit High-capacity Storage Unit High-capacity Storage Unit Hardened Light Armor Plating Layered Light Armor Plating > --- WEAPON ----------- Cooled Plasma Cannon Gauss Cannon > --- INVENTORY -------- Nuclear Core Nuclear Core Light Treads Carbon-fiber Leg Improved Carbon-fiber Leg Wheel Fusion Compressor Improved Heat Sink Advanced Heat Sink Advanced Sensor Array Long-range Sensor Array Advanced Signal Interpreter Advanced Terrain Scanner Advanced Terrain Scan Processor Core Analyzer Weapon Cycler Weapon Cycler Hardened Light Armor Plating Hardened Light Armor Plating Improved Medium Armor Plating Layered Light Armor Plating Hacking Suite Hacking Suite Lightning Gun Shock Bomb Launcher Great Axe [Rating: 49] Favorites ----------- Power Improved Ion Engine Engine Improved Ion Engine Power Core Light Nuclear Core Propulsion Light Treads Treads Light Treads Leg Carbon-fiber Leg Wheel Armored Wheel Utility Large Storage Unit Device Improved Heat Sink Storage Large Storage Unit Processor Advanced Targeting Computer Protection Hardened Light Armor Plating Weapon Medium Laser Energy Gun Medium Laser Energy Cannon Advanced Beam Cannon Ballistic Gun Enhanced Autogun Ballistic Cannon Gauss Cannon Launcher Precision Rocket Launcher Special Weapon Mining Laser Slashing Weapon Katana Build | -11 -10 -9 -9 -8 -7 -7 ------- Run | Scr Mat Mat Sto Mat Fac Low Slots Evolved 6 | . . 2 . 2 2 . Power . | . . . . . . . Propulsion 1 | . . . . 1 . . Utility 5 | . . 2 . 1 2 . Weapon . | . . . . . . . Parts Attached 246 | 7 13 62 35 58 71 . Power 20 | 1 1 5 2 3 8 . Engine 14 | 1 1 1 2 3 6 . Core 6 | . . 4 . . 2 . Reactor . | . . . . . . . Propulsion 71 | 3 6 18 10 15 19 . Treads 47 | 2 2 15 9 14 5 . Leg 15 | . . 1 . . 14 . Wheel 9 | 1 4 2 1 1 . . Hover . | . . . . . . . Flight . | . . . . . . . Utility 52 | 1 3 11 8 10 19 . Device 16 | . 1 4 1 4 6 . Storage 15 | 1 2 6 5 . 1 . Processor 4 | . . . . . 4 . Hackware . | . . . . . . . Protection 17 | . . 1 2 6 8 . Artifact . | . . . . . . . Weapon 103 | 2 3 28 15 30 25 . Energy Gun 50 | 2 3 22 8 13 2 . Energy Cannon 15 | . . 1 3 6 5 . Ballistic Gun 15 | . . 3 2 3 7 . Ballistic Cannon 5 | . . . . . 5 . Launcher 16 | . . 1 2 7 6 . Special Weapon 1 | . . 1 . . . . Impact Weapon . | . . . . . . . Slashing Weapon 1 | . . . . 1 . . Piercing Weapon . | . . . . . . . Special Melee Weapon . | . . . . . . . Unidentified Prototypes 8 | . . 3 3 1 1 . Parts Lost 64 | . 5 9 5 19 26 . Power 5 | . 1 1 . 1 2 . Propulsion 19 | . 1 3 1 5 9 . Utility 14 | . . . 1 6 7 . Weapon 26 | . 3 5 3 7 8 . Highest Loss Streak 7 | . 2 2 3 7 6 . Average Slot Usage (%) 95 | . 78 94 98 99 95 15 Engine 6 | . 12 3 9 8 4 . Core 2 | . . 6 1 . 1 . Treads 19 | . 25 19 17 25 14 . Leg 2 | . . . . . 7 . Wheel 1 | . 2 1 3 1 . . Device 7 | . 2 5 . 8 14 . Storage 28 | . 19 32 35 27 22 . Processor 1 | . . . . . 3 15 Protection 6 | . . 3 7 8 8 . Energy Gun 11 | . 13 18 15 13 . . Energy Cannon 1 | . . . . 3 . . Ballistic Gun 4 | . . 2 6 . 9 . Naked Turns 1 | . . . . . 1 . Heaviest Build 121 | 12 26 62 101 106 121 . Greatest Support 69 | 40 40 43 40 69 68 3 Greatest Overweight (x) 19 | . 2 19 8 8 5 . Average Overweight (x) 1 | . . 1 3 1 1 . Largest Inventory Capacity 30 | 6 12 26 30 26 26 4 Average Capacity 22 | 5 6 20 24 26 25 4 Most Carried 28 | 5 8 22 28 26 26 4 Average Carried 21 | 3 5 17 23 24 24 4 Final Capacity 26 | 6 12 20 26 26 4 4 Final Carried 26 | 5 6 20 26 26 4 4 Class Distribution -------------------- 76% | Hauler-Mutant 13% | Scavenger-Mutant 10% | Mutant Dominant Class ---------------- Mutant | -10/Materials Hauler-Mutant | -9/Materials Hauler-Mutant | -9/Storage Hauler-Mutant | -8/Materials Hauler-Mutant | -7/Factory Hauler-Mutant | -7/Lower Caves Resources | -11 -10 -9 -9 -8 -7 -7 ----------- Run | Scr Mat Mat Sto Mat Fac Low Matter Collected 4759 | 270 39 697 464 690 2599 . Remotely . | . . . . . . . Salvage Created 12616 | 93 200 1946 1699 4148 4530 . Parts 684 | 3 10 120 116 213 222 . Haulers Intercepted 16 | . . 6 4 4 2 . Recyclers Shooed 9 | . 3 4 1 . 1 . Parts Field Recycled . | . . . . . . . Retrieved Matter . | . . . . . . . Parts Self-Destructed . | . . . . . . . Prevented . | . . . . . . . Kills | -11 -10 -9 -9 -8 -7 -7 ------- Run | Scr Mat Mat Sto Mat Fac Low Combat Hostiles Destroyed 228 | . 4 34 30 67 93 . Melee 2 | . 2 . . . . . Guns 125 | . 2 33 23 36 31 . Cannons 37 | . . . . 9 28 . AOE 55 | . . . 6 15 34 . Classes Destroyed 16 | 2 2 6 2 2 2 . Worker 29 | . . 4 3 9 13 . Builder 18 | . 1 2 3 6 6 . Tunneler 3 | 1 . . . 2 . . Hauler 16 | . . 6 4 4 2 . Recycler 11 | 1 . 1 1 4 4 . Mechanic 4 | . . . . . 4 . Operator 3 | . . 1 1 1 . . Watcher 10 | . . 3 2 4 1 . Swarmer 33 | . . 7 7 16 3 . Grunt 125 | . 4 17 12 31 61 . Brawler 12 | . . . . 5 7 . Duelist 10 | . . . 2 3 5 . Protector 6 | . . . 1 1 4 . Sentry 32 | . . 10 8 9 5 . Hunter 3 | . . . . 2 1 . Programmer 7 | . . . . . 7 . Best Kill Streak 20 | 1 1 5 9 14 20 . Combat Bots Only 15 | . 1 5 6 7 15 . Max Kills in Single Turn 10 | 1 1 1 4 3 10 . Gunslinging 1 | . . . . 1 1 . Exploded 8 | . . . 3 3 8 . Melee 1 | . 1 . . . . . Uniques/NPCs Destroyed . | . . . . . . . Combat | -11 -10 -9 -9 -8 -7 -7 -------- Run | Scr Mat Mat Sto Mat Fac Low Damage Taken 14007 | . 588 1666 1382 3659 6663 49 Core 1564 | . 75 177 172 430 678 32 Absorbed by Shields . | . . . . . . . Core Remaining (%) 50 | 100 70 . 12 21 . . Volleys Fired 779 | 8 15 181 106 202 267 . Largest 2 | 2 2 2 2 2 2 . Hottest 136 | 90 100 106 90 136 116 . Shots Fired 1447 | 16 26 334 200 373 498 . Gun 1166 | 16 26 332 195 307 290 . Cannon 237 | . . . 2 45 190 . Launcher 43 | . . 1 3 21 18 . Special 1 | . . 1 . . . . Kinetic 545 | . . 26 89 8 422 . Thermal 398 | 16 26 270 2 45 39 . Explosive 21 | . . 1 3 8 9 . Electromagnetic 483 | . . 37 106 312 28 . Robot Hit Streak 26 | 6 8 14 16 21 26 . Robot Miss Streak 7 | 1 1 7 4 6 6 . Penetration Max 1 | . . . . 1 1 . Secondary Targets 12 | . . 1 . 5 6 . Max Gunslinging Chain 1 | . . 1 . 1 1 . Shots Hit Robots 1045 | 12 22 236 142 286 347 . Core Hits 597 | 3 17 96 83 162 236 . Critical Hits 34 | . . . 2 8 24 . Critical Kills 12 | . . . . 2 10 . Critical Parts Destroyed 18 | . . . 1 4 13 . Melee Attacks 3 | . . . . 3 . . Impact . | . . . . . . . Slashing 3 | . . . . 3 . . Piercing . | . . . . . . . Sneak Attacks . | . . . . . . . Combat Hostiles . | . . . . . . . Follow-up Attacks . | . . . . . . . Damage Inflicted 26606 | 126 322 2998 2283 7361 13516 . Guns 13126 | 126 272 2882 1710 4169 3967 . Cannons 4128 | . . . . 748 3380 . Explosions 9297 | . . 114 573 2444 6166 . Melee . | . . . . . . . Ramming 55 | . 50 2 . . 3 . Kinetic 7356 | . . 305 412 165 6474 . Thermal 6477 | 126 272 2274 472 1913 1420 . Explosive 4965 | . . 72 101 417 4375 . Electromagnetic 7753 | . . 345 1298 4866 1244 . Impact . | . . . . . . . Slashing . | . . . . . . . Piercing . | . . . . . . . Highest Corruption 18 | . . . . . 18 18 Average Corruption 8 | . . . . . 8 18 Corruption Purged . | . . . . . . . Effects 134 | . . . . . 133 1 Message Errors 17 | . . . . . 17 . Matter Fused 14 | . . . . . 13 1 Heat Flow Errors 8 | . . . . . 8 . Energy Discharges 11 | . . . . . 11 . Data Loss (minor) 8 | . . . . . 8 . Data Loss (major) 1 | . . . . . 1 . Misfires 2 | . . . . . 2 . Alerts 2 | . . . . . 2 . Misdirections 6 | . . . . . 6 . Targeting Errors 58 | . . . . . 58 . Weapon Failures 7 | . . . . . 7 . Overload Shots 1 | . . . . . 1 . Effects 1 | . . . . . 1 . Energy Bleed 1 | . . . . . 1 . Overflow Damage 474 | . . . 47 83 344 . Projectiles 56 | . . . . 11 45 . Explosions 418 | . . . 47 72 299 . Melee . | . . . . . . . Knockbacks 37 | . . . . . 37 . Impact . | . . . . . . . Kinetic 32 | . . . . . 32 . Secondary 5 | . . . . . 5 . Self-Inflicted Damage 674 | . . 120 196 207 151 . Shots 22 | . . 2 6 8 6 . Rammed 23 | . 21 1 . . 1 . Targets Rammed 25 | . 23 1 . . 1 . Kicked . | . . . . . . . Crushed 2 | . 2 . . . . . Highest Temperature 476 | 120 356 407 141 244 476 . Average Temperature 61 | 51 199 57 40 57 63 . Received Heat Transfer 5205 | . 333 600 366 1368 2511 27 Effects 17 | . 2 8 . . 7 . Shutdowns 4 | . . 2 . . 2 . Energy Bleed 1 | . . . . . 1 . Interference 7 | . . 4 . . 3 . Matter Decay 3 | . 2 . . . 1 . Short Circuit 2 | . . 2 . . . . Siege Activations . | . . . . . . . Robots Corrupted 8 | . . . 1 7 . . Combat Hostiles 8 | . . . 1 7 . . Parts Fried 45 | . . 2 9 31 3 . Impact Corruptions . | . . . . . . . Robots Melted 2 | . . 2 . . . . Combat Hostiles 1 | . . 1 . . . . Parts Melted 21 | . 1 15 . 2 3 . Heat Transferred 12473 | 335 814 6420 600 2804 1500 . Parts Sabotaged . | . . . . . . . Parts Stolen . | . . . . . . . Parts Stripped . | . . . . . . . Power Chain Reactions 29 | . . 2 9 17 1 . Missiles Intercepted . | . . . . . . . Alert | -11 -10 -9 -9 -8 -7 -7 ------- Run | Scr Mat Mat Sto Mat Fac Low Peak Influence 2963 | 10 106 295 601 1460 2963 . Average Influence 625 | 4 40 122 343 735 1399 . Maximum Alert Level 5 | . . 1 2 4 5 . Low Security (%) 35 | 100 100 85 17 6 . . Level 1 19 | . . 14 51 29 . . Level 2 11 | . . . 30 12 15 . Level 3 13 | . . . . 26 27 . Level 4 10 | . . . . 25 18 . Level 5 7 | . . . . . 27 . High Security 2 | . . . . . 10 . Max Security . | . . . . . . . Squads Dispatched 54 | . . 5 7 12 30 . Investigation 11 | . . 3 3 5 . . Extermination 6 | . . . . . 6 . Reinforcement 13 | . . 2 2 4 5 . Assault 23 | . . . 2 3 18 . Garrison 1 | . . . . . 1 . Intercept . | . . . . . . . Construction Impeded 4 | . . . . 1 3 . Haulers Reinforced 1 | . . . . . 1 . Stealth | -11 -10 -9 -9 -8 -7 -7 --------- Run | Scr Mat Mat Sto Mat Fac Low Distress Signals 13 | . 1 4 4 4 . . Communications Jammed . | . . . . . . . Distress Signals . | . . . . . . . Times Spotted 402 | . 18 59 41 112 169 3 Peak Tracking Total 16 | . 5 6 4 8 16 3 Tactical Retreats 42 | . 2 4 2 13 21 . Traps | -11 -10 -9 -9 -8 -7 -7 ------- Run | Scr Mat Mat Sto Mat Fac Low Traps Triggered 10 | . 3 1 2 3 1 . Indirectly . | . . . . . . . Trap Hack Attempts . | . . . . . . . Triggered . | . . . . . . . Disarmed . | . . . . . . . Reprogrammed . | . . . . . . . Reused . | . . . . . . . Traps Extracted . | . . . . . . . Installed . | . . . . . . . Triggered . | . . . . . . . Machines | -11 -10 -9 -9 -8 -7 -7 ---------- Run | Scr Mat Mat Sto Mat Fac Low Machines Disabled 34 | . . 2 5 6 21 . Max in Single Turn 11 | . . 2 1 1 11 . Machines Sabotaged . | . . . . . . . Garrisons Compromised . | . . . . . . . Overloaded Fab Kills . | . . . . . . . Fab Network Shutdowns 1 | . . . . . 1 . Hacking | -11 -10 -9 -9 -8 -7 -7 --------- Run | Scr Mat Mat Sto Mat Fac Low Machines Accessed 39 | . 3 8 11 11 6 . Terminals 27 | . 1 7 10 6 3 . Fabricators 1 | . . . . . 1 . Repair Stations 3 | . . . . 2 1 . Recycling Units 6 | . 2 1 1 2 . . Scanalyzers 2 | . . . . 1 1 . Garrison Access . | . . . . . . . Total Hacks 109 | . 5 18 39 34 13 . Successful 68 | . 4 7 29 23 5 . Failed 41 | . 1 11 10 11 8 . Catastrophic 7 | . 1 2 . 1 3 . Database Lockouts . | . . . . . . . Manual 65 | . 3 13 25 19 5 . Terminals 86 | . 3 16 36 23 8 . Fabricators 2 | . . . . . 2 . Repair Stations 6 | . . . . 5 1 . Recycling Units 11 | . 2 2 3 4 . . Scanalyzers 4 | . . . . 2 2 . Garrison Access . | . . . . . . . Terminal Hacks 37 | . 2 4 17 11 3 . Part Schematic 2 | . . . 1 1 . . Prototype ID Bank 5 | . . . 3 2 . . Open Door 3 | . . . 3 . . . Branch Access Points 3 | . . 1 . 1 1 . Emergency Access Points 1 | . . . . . 1 . Terminal Index 3 | . 1 . 1 1 . . Alert Level 2 | . . . 1 1 . . Unreport Threat 6 | . . 2 2 1 1 . Locate Traps 2 | . . . 2 . . . Transport Status 1 | . . . . 1 . . Recall Reinforcements 1 | . . . . 1 . . Hauler Manifests 4 | . . 1 2 1 . . Zone Layout 4 | . 1 . 2 1 . . Fabricator Hacks 1 | . . . . . 1 . Build 1 | . . . . . 1 . Repair Station Hacks 4 | . . . . 4 . . Scan Component 2 | . . . . 2 . . Repair 2 | . . . . 2 . . Recycling Unit Hacks 5 | . 2 1 1 1 . . Retrieve Components 5 | . 2 1 1 1 . . Scanalyzer 3 | . . . . 2 1 . Insert Component 2 | . . . . 1 1 . Analyze 1 | . . . . 1 . . Garrison Access Hacks . | . . . . . . . Unauthorized Hacks 18 | . . 2 11 5 . . Terminals 14 | . . 1 10 3 . . Track 7 | . . 1 4 2 . . Botnet 6 | . . . 5 1 . . Disrupt 1 | . . . 1 . . . Fabricators . | . . . . . . . Repair Stations . | . . . . . . . Recycling Units 4 | . . 1 1 2 . . Tunnel 4 | . . 1 1 2 . . Scanalyzers . | . . . . . . . Garrison Access . | . . . . . . . Data Cores Recovered . | . . . . . . . Used . | . . . . . . . Hacking Detections 34 | . 1 7 11 9 6 . Full Trace Events 1 | . . 1 . . . . Feedback Events . | . . . . . . . Feedback Blocked . | . . . . . . . Robot Schematics Acquired . | . . . . . . . Robots Built . | . . . . . . . Matter . | . . . . . . . Time . | . . . . . . . Total Robot Build Rating . | . . . . . . . Part Schematics Acquired 3 | . . . 1 2 . . Parts Built 2 | . . . . . 2 . Matter 190 | . . . . . 190 . Time 95 | . . . . . 95 . Total Part Build Rating 10 | . . . . . 10 . Parts Repaired 2 | . . . . 2 . . Time 138 | . . . . 138 . . Parts Recycled . | . . . . . . . Recycled Matter . | . . . . . . . Retrieved Matter . | . . . . . . . Retrieved Components 26 | . 6 9 2 9 . . Parts Scanalyzed 2 | . . . . 1 1 . Part Schematics Acquired 1 | . . . . 1 . . Parts Damaged 1 | . . . . 1 . . Bothacking | -11 -10 -9 -9 -8 -7 -7 ------------ Run | Scr Mat Mat Sto Mat Fac Low Used RIF Installer . | . . . . . . . Robots Hacked . | . . . . . . . Non-combat . | . . . . . . . Combat . | . . . . . . . Robot Hacks Applied . | . . . . . . . Relay Couplers Released . | . . . . . . . Robots Rewired 1 | . . . . 1 . . Allies Hacked . | . . . . . . . Hacks Repelled . | . . . . . . . Allies | -11 -10 -9 -9 -8 -7 -7 -------- Run | Scr Mat Mat Sto Mat Fac Low Total Allies 4 | . . . 2 1 . 1 Largest Group 2 | . . . 2 1 . 1 Highest-Rated Group 105 | . . . 62 14 . 105 Highest-Rated Ally 105 | . . . 31 14 . 105 Total Orders 1 | . . . . 1 . . ROAM 1 | . . . . 1 . . Ally Attacks 15 | . . . 10 . . 5 Total Damage 370 | . . . 212 . . 158 Kills 5 | . . . 3 . . 2 Allies Corrupted . | . . . . . . . Allies Melted 1 | . . . 1 . . . Intel | -11 -10 -9 -9 -8 -7 -7 ------- Run | Scr Mat Mat Sto Mat Fac Low Robot Analysis Total . | . . . . . . . Derelict Logs Recovered . | . . . . . . . Drone Launches . | . . . . . . . Drone Recoveries . | . . . . . . . Exploration | -11 -10 -9 -9 -8 -7 -7 ------------- Run | Scr Mat Mat Sto Mat Fac Low Turns Passed 10979 | 148 641 3030 1666 2688 2798 8 Spaces Moved 4656 | 74 346 1319 692 1068 1144 13 Core 108 | 1 . 5 . . 89 13 Treads 3720 | 64 297 1214 437 923 785 . Legs 270 | . . . . . 270 . Wheels 558 | 9 49 100 255 145 . . Hover . | . . . . . . . Flight . | . . . . . . . Fastest Speed 50 | 50 80 100 160 170 50 50 Average Speed 174 | 148 148 177 181 178 173 50 Slowest Speed 1000 | 160 160 1000 240 200 280 50 Overloaded Moves . | . . . . . . . Propulsion Burnouts . | . . . . . . . Robots Hopped . | . . . . . . . Cave-ins Triggered . | . . . . . . . Exploration Rate (%) 50 | 7 64 87 85 74 32 4 Regions Visited 6 Branch Regions 2 Pre-discovered Areas 4 | . . 1 1 2 . . Known Exits Taken 2 | . . 1 . . 1 . Unknown Exits Taken 4 | 1 1 . 1 1 . . Scrap Searched . | . . . . . . . Spaces Dug 82 | . . 1 15 65 1 . Terrain Destroyed 507 | . . 44 50 196 217 . Melee 3 | . . . . 3 . . Projectile 37 | . . 1 . 1 35 . AOE 467 | . . 43 50 192 182 . Actions | -11 -10 -9 -9 -8 -7 -7 --------- Run | Scr Mat Mat Sto Mat Fac Low Total 6205 | 93 428 1683 929 1469 1589 14 Wait 181 | . 27 32 42 69 10 1 Move 4650 | 73 345 1318 691 1067 1143 13 Hop . | . . . . . . . Pick Up 153 | 4 3 40 25 38 43 . Fast Attach 69 | 7 7 26 6 5 18 . Attach 79 | . 3 16 6 29 25 . Detach 3 | 1 . 1 . . 1 . Swap 98 | . 3 20 23 24 28 . Drop 155 | . 2 48 30 24 51 . Fire 779 | 8 15 181 106 202 267 . Melee 3 | . . . . 3 . . Ram 1 | . . 1 . . . . Kick 1 | . . . . . 1 . Crush 23 | . 23 . . . . . Escape Stasis 2 | . . . . . 2 . Rewire 8 | . . . . 8 . . Trap . | . . . . . . . Miscellaneous . | . . . . . . . Route ------- -11/Scrapyard -10/Materials (discovered 4 exits: *Mat x2 / [*Min x2]) -9/Materials (discovered 4 exits: *Mat x2 / *Min / *Sto) -9/Storage -8/Materials -7/Factory (discovered 3 exits: [*Fac] / *Low x2) -7/Lower Caves (discovered 1 exit: [*Fac]) History --------- Turn | Location | Event 9 | -11/Scrapyard | Discovered new exit (range 15) 149 | -11/Scrapyard | Entered Materials 184 | -10/Materials | Discovered new exit (range 15) 316 | -10/Materials | Build established: Mutant 598 | -10/Materials | Discovered new exit (range 17) 721 | -10/Materials | Discovered new exit (range 11) 760 | -10/Materials | Discovered new exit (range 16) 790 | -10/Materials | Entered another Materials area 790 | -9/Materials | Evolved 2 slots: Utility x2 792 | -9/Materials | Discovered new exit (range 15) 1343 | -9/Materials | Build established: Hauler-Mutant 1411 | -9/Materials | Discovered new exit (range 13) 2291 | -9/Materials | Identified exit to Mines 2291 | -9/Materials | Identified exit to Storage 2707 | -9/Materials | Discovered new exit (range 11) 3037 | -9/Materials | Build established: Scavenger-Mutant 3240 | -9/Materials | Discovered new exit (range 8) 3471 | -9/Materials | Build established: Hauler-Mutant 3820 | -9/Materials | Entered Storage 4096 | -9/Storage | Core integrity fell below 50% 4360 | -9/Storage | Lost 3 parts (1n1u1w) 4920 | -9/Storage | Core integrity fell below 20% 5151 | -9/Storage | Met a pair of Derelict thieves 5450 | -9/Storage | Discovered new exit (range 10) 5486 | -9/Storage | Entered Materials 5486 | -8/Materials | Evolved 2 slots: Propulsion x1, Utility x1 6549 | -8/Materials | Lost 7 parts (3n2u2w) 6827 | -8/Materials | Core integrity fell below 50% 7086 | -8/Materials | First assault squad dispatched 7202 | -8/Materials | Repaired Broken Cld. Plasma Cannon? 7652 | -8/Materials | Discovered new exit (range 16) 7739 | -8/Materials | Repaired Hrd. Medium Armor Plating 7961 | -8/Materials | Lost 4 parts (1n1u2w) 7975 | -8/Materials | Destroyed 7 combat bots 8174 | -8/Materials | Entered Factory 8174 | -7/Factory | Evolved 2 slots: Utility x2 8272 | -7/Factory | Build established: Scavenger-Mutant 8960 | -7/Factory | Identified exit to Lower Caves 9175 | -7/Factory | Build established: Hauler-Mutant 9239 | -7/Factory | Discovered new exit (range 3) 9373 | -7/Factory | Local fabrication network quarantined 9374 | -7/Factory | First assault squad dispatched 9434 | -7/Factory | Fabricated Fusion Compressor? 9562 | -7/Factory | Destroyed 15 combat bots 9834 | -7/Factory | System corruption reached 10% 9908 | -7/Factory | Lost 3 parts (3n) 9929 | -7/Factory | Destroyed 10 combat bots 10013 | -7/Factory | Lost 3 parts (1p2u) 10186 | -7/Factory | Core integrity fell below 50% 10369 | -7/Factory | Lost 3 parts (1n1u1w) 10667 | -7/Factory | High security lockdown imminent 10747 | -7/Factory | High security lockdown engaged 10751 | -7/Factory | Destroyed 13 combat bots 10782 | -7/Factory | Garrison activated, responded to threat 10783 | -7/Factory | Core integrity fell below 20% 10923 | -7/Factory | Released all parts (7) 10942 | -7/Factory | Destroyed 8 combat bots 10954 | -7/Factory | Lost 6 parts (1n3u2w) 10972 | -7/Factory | Entered Lower Caves 10973 | -7/Lower Caves | 12-ASH showed up to help 10975 | -7/Lower Caves | 12-ASH revealed a hidden path 10980 | -7/Lower Caves | Destroyed by G-47 Trooper with Particle Gun Last Messages --------------- 10923_ Released Weapon Cycler. 10923_ Released Carbon-fiber Leg. 10923_ Released Nuclear Core. 10924_ Acquired Core Analyzer. 10926_ Dropped Adv. Heat Sink. 10926_ Acquired Great Axe. 10928_ Penetrated by Slug. 10939_ System corrupted: Matter fused (-9). 10945_ O-24 Administrator: "IFF HANDSHAKE FAILED. SECURING TERMINAL." 10955_ System corrupted: Heat flow error (+255). 10970_ Acquired Adv. Terrain Scan Processor. LOCATION=LOWER CAVES GOAL=ESCAPE A strange signal echoes through the caves. 12-ASH: "Let me deal with this, you get out of here!" 12-ASH: "There's a hidden path right here." 10975_ G-47 Trooper destroyed. 10977_ 12-ASH: "Gotta help the little guy..." 10978_ System corrupted: Matter fused (-6). 10978_ G-50 Soldier destroyed. Map ----- +----------------------------------------------------+ | ?????????????????????????????????????????????????? | | ?????????????????????????????????????????????????? | | ?????????????????????????????????????????????????? | | ?????????????????????????????????????????????????? | | ?????????????????????????????????????????????????? | | ????????????????????? ???????????????????????????? | | ????????????????????? ???????????????????????????? | | ???????????????""""" ???????????????????????????? | | ???????????????? """ ???????????????????????????? | | ???????????????? " #??????????????????????????? | | ????????????????" ??????????????????????????? | | ????????????????" ??????????????????????????? | | ????????????"?? " ??????????????????????????? | | ??????????"?" " ??????????????????????????? | | ?????????"""" "" #?????##???????????????????? | | ??????????? """ #????? ##??????????????????? | | ????????????? " #???? #??????????????????? | | ??????????????? " #???? ???????????????????? | | ????????????????? #???? #???????????????????? | | ??????????????????? #???? #???????????????????? | | ???????????????????## ##??? ##??????????????????? | | ???????????????????# #### ###????????????????? | | ???????????????????# #????????????????? | | ???????????????????## #????????????????? | | ????????????????????## ##????????????????? | | ?????????????????????## @g #?????????????????? | | ??????????????????????## #?????????????????? | | ???????????????????????## #?????????????????? | | ????????????????????????# #?????????????????? | | ????????????????????????## #?????????????????? | | ?????????????????????????# % #?????????????????? | | ?????????????????????????##g=% #?????????????????? | | ???????????????????????????#!= #?????????????????? | | ????????????????????????????# #?????????????????? | | ?????????????????????????????; ;?????????????????? | | ?????????????????????????????####????????????????? | | ?????????????????????????????????????????????????? | | ?????????????????????????????????????????????????? | | ?????????????????????????????????????????????????? | | ?????????????????????????????????????????????????? | | ?????????????????????????????????????????????????? | | ?????????????????????????????????????????????????? | | ?????????????????????????????????????????????????? | | ?????????????????????????????????????????????????? | | ?????????????????????????????????????????????????? | | ?????????????????????????????????????????????????? | | ?????????????????????????????????????????????????? | | ?????????????????????????????????????????????????? | | ?????????????????????????????????????????????????? | | ?????????????????????????????????????????????????? | +----------------------------------------------------+ Best States ------------- Heat Dissipation 72 Energy Generation 18 Energy Capacity 290 Matter Stores 300 Matter Capacity 300 Sight Range 16 Terrain Scan Range 16 Terrain Scan Density 210 Armor Coverage 600 Resistance: TH 10 Weapon Cycling 15 Evasion (%) 50 Targeting Accuracy 8 Core Analysis 6 Recoil Reduction 3 Item Schematics ----------------- Hcp. Storage Unit | -9/Storage | Hacked Cld. Plasma Cannon | -8/Materials | Scanalyzed Lrg. Storage Unit | -8/Materials | Hacked Robot Schematics ------------------ None Fabricated ------------ Fusion Compressor | x2 | -7/Factory | Preloaded Alien Tech Used ----------------- None Achievements -------------- None Challenges ------------ None Game ------ Seed ShadingProcessingMantle Manual? 0 Play Time 01:11:06 Cumulative 430.7 hours Start 2020.08.27 @ 20:21:03 End 2020.08.31 @ 19:26:50 Sessions 3 Manual Loads 0 Difficulty Rogue Special Mode None Game No. 291 Rogue 291 Adventurer 0 Explorer 0 Win Type - Total 4 Types 4/0/0/0/0/0/0 Lore% 86 Gallery% 86 Achievement% 65 Wizard Run 0 Options --------- ASCII 0 Keyboard 0 Movement Mouse Keybinds 1 Fullscreen 2 Font 24/Smallcaps Map View 76x50 Tactical HUD 1 Map Filters NONE Filters NONE Steam 1 RUN: 5e151b0d-76ec-44da-b594-48316171bae1